fUST/lending_fUST_20250723
["ID","MTS","AMOUNT","RATE_DAILY","PERIOD"]
[374105564,1753207852948,-151.0,0.00022241,2]
[374105565,1753207852957,-151.0,0.00022241,2]
[374105566,1753207852967,-151.0,0.00022241,2]
[374105567,1753207852976,-191.524113,0.00022241,7]
[374105568,1753207852986,-168.0,0.00022287,2]
[374105569,1753207852995,-168.0,0.0002229,2]
[374105570,1753207853008,-902.26,0.00022307,2]
[374105571,1753207853017,-1912.77,0.00022308,2]
[374105572,1753207853106,-852.5,0.00022308,2]
[374105573,1753207853117,-529.08,0.00022308,2]
[374105574,1753207853128,-1191.42,0.00022308,2]
[374105575,1753207853137,-1175.98,0.00022308,2]
[374105576,1753207853147,-1063.61,0.00022308,2]
[374105577,1753207853156,-811.57,0.00022309,2]
[374105578,1753207853165,-2509.47,0.0002231,2]
[374105579,1753207853175,-536.21109874,0.0002231,2]
[374105580,1753207853185,-756.34,0.0002231,2]
[374105581,1753207853194,-1149.37,0.0002231,2]
[374105582,1753207853203,-460.0,0.00022311,2]
[374105583,1753207853213,-592.14,0.00022311,2]
[374105584,1753207853223,-684.19,0.00022311,2]
[374105585,1753207853233,-2236.35669161,0.00022314,7]
[374105586,1753207853243,-168.0,0.00022392,2]
[374105587,1753207853258,-534.88,0.00022399,2]
[374105588,1753207853268,-539.78,0.00022399,2]
[374105589,1753207853287,-27730.8,0.000224,2]
[374105590,1753207853298,-151.0,0.000224,7]
[374105591,1753207853309,-1000.0,0.00022434,2]
[374105592,1753207853319,-1000.0,0.00022434,2]
[374105593,1753207853329,-1950.72,0.00022465,2]
[374105594,1753207853338,-534.88,0.00022499,6]
[374105595,1753207853347,-539.78,0.00022499,2]
[374105596,1753207853357,-231.28369723,0.00022502,2]
[374105597,1753207853366,-500.0,0.00022515,2]
[374105598,1753207853377,-500.0,0.00022515,2]
[374105599,1753207853386,-151.0,0.00022515,2]
[374105600,1753207853395,-151.0,0.00022515,2]
[374105601,1753207853404,-902.26,0.00022581,2]
[374105602,1753207853414,-1912.77,0.00022582,2]
[374105603,1753207853424,-852.5,0.00022582,2]
[374105604,1753207853433,-529.08,0.00022582,2]
[374105605,1753207853442,-1191.42,0.00022582,2]
[374105606,1753207853452,-1175.98,0.00022582,2]
[374105607,1753207853461,-1063.61,0.00022582,2]
[374105608,1753207853470,-811.57,0.00022583,2]
[374105609,1753207853480,-2509.47,0.00022584,2]
[374105610,1753207853489,-756.34,0.00022584,2]
[374105611,1753207853502,-1149.37,0.00022584,2]
[374105612,1753207853514,-460.0,0.00022585,2]
[374105613,1753207853523,-592.14,0.00022585,2]
[374105614,1753207853533,-684.19,0.00022585,2]
[374105615,1753207853542,-2236.35669161,0.0002259,7]
[374105616,1753207853551,-151.0,0.0002259,7]
[374105617,1753207853561,-151.0,0.0002259,7]
[374105618,1753207853571,-151.0,0.0002259,7]
[374105619,1753207853580,-168.0,0.00022598,2]
[374105620,1753207853590,-534.88,0.00022599,5]
[374105621,1753207853599,-539.78,0.00022599,4]
[374105622,1753207853610,-151.0,0.00022599,7]
[374105623,1753207853619,-151.0,0.00022599,7]
[374105624,1753207853629,-151.0,0.00022599,7]
[374105625,1753207853638,-151.0,0.00022599,7]
[374105626,1753207853648,-151.0,0.00022599,7]
[374105627,1753207853657,-151.0,0.00022599,7]
[374105628,1753207853666,-168.0,0.00022628,2]
[374105629,1753207853676,-168.0,0.00022671,2]
[374105630,1753207853685,-534.88,0.00022699,4]
[374105631,1753207853694,-539.78,0.00022699,7]
[374105632,1753207853704,-151.0,0.000227,9]
[374105633,1753207853713,-168.0,0.00022702,2]
[374105634,1753207853722,-250.6087206,0.00022754,2]
[374105635,1753207853731,-640.0,0.00022789,2]
[374105636,1753207853741,-500.0,0.00022789,2]
[374105637,1753207853752,-198.0,0.00022789,2]
[374105638,1753207853761,-198.0,0.00022789,2]
[374105639,1753207853771,-534.88,0.00022799,4]
[374105640,1753207853780,-539.78,0.00022799,2]
[374105641,1753207853790,-902.26,0.00022855,2]
[374105642,1753207853800,-1912.77,0.00022856,2]
[374105643,1753207853809,-852.5,0.00022856,2]
[374105644,1753207853818,-529.08,0.00022856,2]
[374105645,1753207853828,-1191.42,0.00022856,2]
[374105646,1753207853838,-1175.98,0.00022856,2]
[374105647,1753207853847,-1063.61,0.00022856,2]
[374105648,1753207853856,-811.57,0.00022857,2]
[374105649,1753207853865,-168.0,0.00022857,2]
[374105650,1753207853875,-2509.47,0.00022858,2]
[374105651,1753207853884,-756.34,0.00022858,2]
[374105652,1753207853893,-1149.37,0.00022858,2]
[374105653,1753207853903,-407.71314511,0.00022859,2]
[374105654,1753207853912,-592.14,0.00022859,2]
[374105655,1753207853922,-684.19,0.00022859,2]
[374105656,1753207853931,-2236.35669161,0.00022866,8]
[374105657,1753207853942,-168.0,0.00022875,2]
[374105658,1753207853952,-534.88,0.00022899,5]
[374105659,1753207853961,-539.78,0.00022899,3]
[374105660,1753207853971,-168.0,0.00022977,2]
[374105661,1753207853980,-500.0,0.00022982,2]
[374105662,1753207853991,-1000.0,0.00022982,2]
[374105663,1753207854004,-534.88,0.00022999,4]
[374105664,1753207854013,-539.792,0.00022999,5]
[374105665,1753207854023,-160.0,0.00023,2]
[374105666,1753207854033,-331.6760189,0.00023,2]
[374105667,1753207854042,-172.0,0.00023014,7]
[374105668,1753207854052,-500.0,0.00023063,2]
[374105669,1753207854062,-297.0,0.00023123,9]
[374105670,1753207854071,-902.46540976,0.00023129,2]
[374105671,1753207854081,-1912.82316424,0.0002313,2]
[374105672,1753207854090,-852.54775696,0.0002313,2]
[374105673,1753207854100,-529.31996318,0.0002313,2]
[374105674,1753207854109,-1191.49952066,0.0002313,2]
[374105675,1753207854118,-1176.09373115,0.0002313,2]
[374105676,1753207854128,-1063.72526121,0.0002313,2]
[374105677,1753207854138,-811.70493028,0.00023131,2]
[374105678,1753207854147,-2509.49733408,0.00023132,2]
[374105679,1753207854157,-756.52,0.00023132,2]
[374105680,1753207854166,-1149.38807052,0.00023132,2]
[374105681,1753207854175,-592.36,0.00023133,2]
[374105682,1753207854185,-684.42,0.00023133,2]
[374105683,1753207854195,-168.0,0.00023141,2]
[374105684,1753207854205,-2236.35669161,0.00023141,8]
[374105685,1753207854215,-151.0,0.00023145,7]
[374105686,1753207854224,-168.0,0.0002317,2]
[374105687,1753207854234,-2990.83,0.000233,7]
[374105688,1753207854243,-456.08,0.000233,7]
[374105689,1753207854255,-504.34667537,0.0002331,2]
[374105690,1753207854265,-168.0,0.0002331,2]
[374105691,1753207854279,-500.0,0.00023337,2]
[374105692,1753207854288,-27730.8,0.000234,2]
[374105693,1753207854297,-151.0,0.000234,8]
[374105694,1753207854307,-151.0,0.000234,7]
[374105695,1753207854317,-2236.35669161,0.00023417,9]
[374105696,1753207854327,-429.0948676,0.00023422,2]
[374105697,1753207854337,-168.0,0.00023487,2]
[374105698,1753207854347,-269.47,0.000235,7]
[374105699,1753207854357,-1000.0,0.00023546,5]
[374105700,1753207854367,-500.0,0.00023611,2]
[374105701,1753207854377,-2236.35669161,0.00023693,9]
[374105702,1753207854386,-151.0,0.00023733,7]
[374105703,1753207854396,-534.88,0.00023733,2]
[374105704,1753207854406,-534.88,0.00023833,2]
[374105705,1753207854415,-239.84119403,0.00023871,2]
[374105706,1753207854425,-500.0,0.00023885,2]
[374105707,1753207854434,-534.88,0.00023933,2]
[374105708,1753207854444,-207.0,0.00023963,2]
[374105709,1753207854454,-2236.35669161,0.00023969,10]
[374105710,1753207854463,-154.9988728,0.00023973,2]
[374105711,1753207854472,-647.0,0.00023985,2]
[374105712,1753207854482,-2157.0,0.00023985,2]
[374105713,1753207854491,-968.0,0.00023985,2]
[374105714,1753207854505,-407.0,0.00023985,2]
[374105715,1753207854514,-318.35877324,0.00024,2]
[374105716,1753207854523,-1000.0,0.00024,2]
[374105717,1753207854533,-1000.0,0.00024,2]
[374105718,1753207854542,-1000.0,0.00024,2]
[374105719,1753207854551,-1000.0,0.00024,2]
[374105720,1753207854561,-1000.0,0.00024,2]
[374105721,1753207854570,-1000.0,0.00024,2]
[374105722,1753207854579,-1000.0,0.00024,2]
[374105723,1753207854589,-1000.0,0.00024,2]
[374105724,1753207854599,-1000.0,0.00024,2]
[374105725,1753207854608,-1000.0,0.00024,2]
[374105726,1753207854618,-1000.0,0.00024,2]
[374105727,1753207854627,-1000.0,0.00024,2]
[374105728,1753207854636,-418.98,0.00024,2]
[374105729,1753207854645,-160.0,0.00024,7]
[374105730,1753207854654,-500.0,0.00024027,30]
[374105731,1753207854664,-1145.48,0.000241,2]
[374105732,1753207854674,-402.936892,0.00024137,2]
[374105733,1753207854683,-500.0,0.00024159,2]
[374105734,1753207854692,-175.0,0.00024164,7]
[374105735,1753207854701,-151.0,0.000242,5]
[374105736,1753207854711,-2236.35669161,0.00024245,10]
[374105737,1753207854720,-159.8957685,0.00024274,2]
[374105738,1753207854729,-178.204927,0.00024274,2]
[374105739,1753207854738,-577.4526085,0.00024274,2]
[374105740,1753207854747,-159.8957685,0.00024274,2]
[374105741,1753207854760,-178.204927,0.00024274,2]
[374105742,1753207854769,-153.0,0.00024274,2]
[374105743,1753207854779,-306.0,0.00024274,2]
[374105744,1753207854788,-577.4526085,0.00024274,2]
[374105745,1753207854798,-356.1568248,0.00024274,2]
[374105746,1753207854807,-159.8957685,0.00024274,2]
[374105747,1753207854816,-577.4526085,0.00024274,2]
[374105748,1753207854826,-159.8957685,0.00024274,2]
[374105749,1753207854835,-153.0,0.00024274,2]
[374105750,1753207854919,-577.4526085,0.00024274,2]
[374105751,1753207854929,-159.8957685,0.00024274,2]
[374105752,1753207854939,-577.4526085,0.00024274,2]
[374105753,1753207854949,-153.0,0.00024274,2]
[374105754,1753207854958,-159.8957685,0.00024274,2]
[374105755,1753207854968,-576.2273359,0.00024274,2]
[374105756,1753207854977,-158.9103065,0.00024274,2]
[374105757,1753207854986,-153.0,0.00024274,2]
[374105758,1753207854996,-173.313019,0.00024274,8]
[374105759,1753207855007,-150.793548,0.0002428,2]
[374105760,1753207855017,-151.0,0.000243,6]
[374105761,1753207855027,-151.0,0.000243,7]
[374105762,1753207855037,-151.0,0.000243,6]
[374105763,1753207855047,-151.0,0.000243,6]
[374105764,1753207855056,-153.0,0.00024381,2]
[374105765,1753207855065,-159.8957685,0.00024381,2]
[374105766,1753207855075,-577.4526085,0.00024381,2]
[374105767,1753207855084,-153.0,0.00024381,2]
[374105768,1753207855094,-399.5989797,0.00024381,2]
[374105769,1753207855103,-159.8957685,0.00024381,2]
[374105770,1753207855113,-178.204927,0.00024381,2]
[374105771,1753207855122,-153.0,0.00024381,2]
[374105772,1753207855132,-577.4526085,0.00024381,2]
[374105773,1753207855141,-153.0,0.00024381,2]
[374105774,1753207855151,-178.0151551,0.00024381,2]
[374105775,1753207855160,-153.0,0.00024381,2]
[374105776,1753207855169,-153.0,0.00024381,2]
[374105777,1753207855179,-576.8399722,0.00024381,2]
[374105778,1753207855189,-159.7273635,0.00024381,2]
[374105779,1753207855198,-153.0,0.00024381,2]
[374105780,1753207855208,-153.0,0.00024381,2]
[374105781,1753207855218,-183.4730734,0.00024381,2]
[374105782,1753207855229,-306.0,0.00024381,2]
[374105783,1753207855238,-153.0,0.00024381,2]
[374105784,1753207855248,-153.0,0.00024381,2]
[374105785,1753207855259,-150.0,0.00024415,2]
[374105786,1753207855269,-500.0,0.00024433,2]
[374105787,1753207855278,-27730.8,0.000245,2]
[374105788,1753207855289,-643.0,0.000245,2]
[374105789,1753207855299,-151.0,0.000245,7]
[374105790,1753207855308,-2236.35669161,0.00024521,11]
[374105791,1753207855318,-151.0,0.00024558,7]
[374105792,1753207855329,-175.779188,0.00024558,7]
[374105793,1753207855339,-151.0,0.00024558,7]
[374105794,1753207855349,-152.175719,0.00024558,7]
[374105795,1753207855359,-383.746029,0.00024558,7]
[374105796,1753207855368,-383.746029,0.00024558,7]
[374105797,1753207855377,-151.0,0.00024558,7]
[374105798,1753207855387,-244.863184,0.00024558,7]
[374105799,1753207855396,-151.0,0.00024558,7]
[374105800,1753207855406,-151.0,0.00024558,7]
[374105801,1753207855416,-151.0,0.00024558,7]
[374105802,1753207855425,-151.0,0.00024558,7]
[374105803,1753207855434,-20704.71637493,0.00024558,2]
[374105804,1753207855444,-151.0,0.00024574,6]
[374105805,1753207855453,-206.0,0.000246,2]
[374105806,1753207855462,-2990.83,0.000246,7]
[374105807,1753207855471,-456.08,0.000246,7]
[374105808,1753207855481,-280.0,0.00024658,2]
[374105809,1753207855490,-151.39265493,0.00024658,2]
[374105810,1753207855498,-489.0,0.00024658,2]
[374105811,1753207855511,-500.0,0.00024707,2]
[374105812,1753207855519,-1048.726936,0.0002476,5]
[374105813,1753207855529,-12945.73328055,0.00024774,2]
[374105814,1753207855538,-1000.0,0.0002478,5]
[374105815,1753207855546,-4864.99,0.0002479,10]
[374105816,1753207855555,-4573.47,0.0002479,10]
[374105817,1753207855564,-3811.23,0.0002479,10]
[374105818,1753207855573,-2236.35669161,0.00024797,11]
[374105819,1753207855582,-151.0,0.000248,7]
[374105820,1753207855591,-269.47,0.000248,7]
[374105821,1753207855600,-151.0,0.000248,7]
[374105822,1753207855609,-151.0,0.000248,7]
[374105823,1753207855618,-151.0,0.000248,7]
[374105824,1753207855627,-151.0,0.000248,7]
[374105825,1753207855635,-151.0,0.000248,7]
[374105826,1753207855644,-1000.0,0.000248,5]
[374105827,1753207855653,-151.0,0.000248,7]
[374105828,1753207855663,-151.0,0.000248,7]
[374105829,1753207855672,-150.793548,0.000248,11]
[374105830,1753207855680,-383.746029,0.000248,7]
[374105831,1753207855689,-383.746029,0.000248,7]
[374105832,1753207855700,-151.0,0.000248,7]
[374105833,1753207855715,-325687.084608,0.000248,2]
[374105834,1753207855730,-151.0,0.000248,7]
[374105835,1753207855741,-151.0,0.000248,7]
[374105836,1753207855754,-151.0,0.000248,7]
[374105837,1753207855768,-198.0,0.00024848,6]
[374105838,1753207855782,-20795.6191297,0.00024899,2]
[374105839,1753207855797,-200.0,0.00024899,2]
[374105840,1753207855812,-152.083839,0.000249,7]
[374105841,1753207855826,-151.0,0.000249,7]
[374105842,1753207855840,-151.0,0.000249,7]
[374105843,1753207855854,-162.44722552,0.000249,7]
[374105844,1753207855867,-151.0,0.000249,7]
[374105845,1753207855882,-151.0,0.000249,7]
[374105846,1753207855895,-151.0,0.000249,7]
[374105847,1753207855907,-151.0,0.000249,7]
[374105848,1753207855919,-151.0,0.000249,7]
[374105849,1753207855932,-151.0,0.000249,7]
[374105850,1753207855944,-260.007,0.000249,7]
[374105851,1753207855957,-151.0,0.000249,7]
[374105852,1753207855970,-151.0,0.000249,7]
[374105853,1753207855985,-151.0,0.000249,7]
[374105854,1753207855998,-151.0,0.000249,7]
[374105855,1753207856010,-383.746029,0.000249,7]
[374105856,1753207856021,-383.746029,0.000249,7]
[374105857,1753207856031,-1580.83867392,0.000249,2]
[374105858,1753207856046,-151.0,0.000249,7]
[374105859,1753207856060,-447357.607594,0.000249,2]
[374105860,1753207856072,-151.0,0.000249,7]
[374105861,1753207856084,-151.0,0.000249,7]
[374105862,1753207856096,-151.0,0.000249,7]
[374105863,1753207856108,-151.0,0.000249,7]
[374105864,1753207856120,-151.0,0.000249,7]
[374105865,1753207856132,-151.0,0.000249,7]
[374105866,1753207856142,-1580.83867384,0.00024912,2]
[374105867,1753207856155,-1580.83867384,0.00024924,2]
[374105868,1753207856167,-489.0,0.00024932,2]
[374105869,1753207856178,-1580.83867384,0.00024935,2]
[374105870,1753207856190,-1580.83867384,0.00024947,2]
[374105871,1753207856203,-200.0,0.00024949,2]
[374105872,1753207856217,-3106.26431083,0.0002495,2]
[374105873,1753207856229,-1580.83867384,0.00024959,2]
[374105874,1753207856242,-206.0,0.0002496,2]
[374105875,1753207856256,-1580.83867384,0.00024971,2]
[374105876,1753207856268,-200.63612521,0.00024973,2]
[374105877,1753207856280,-200.0,0.00024979,2]
[374105878,1753207856295,-1129.480931,0.0002498,5]
[374105879,1753207856308,-500.0,0.00024981,2]
[374105880,1753207856320,-1580.83867384,0.00024982,2]
[374105881,1753207856335,-200.0,0.00024989,2]
[374105882,1753207856346,-1580.83867384,0.00024994,2]
[374105883,1753207856359,-202.03289407,0.00024998,2]
[374105884,1753207856371,-1000.0,0.00024999,30]
[374105885,1753207856383,-1000.0,0.00024999,20]
[374105886,1753207856395,-1000.0,0.00024999,12]
[374105887,1753207856408,-1000.0,0.00024999,7]
[374105888,1753207856421,-103376.62175757,0.00025,30]
[374105889,1753207856432,-161.68943889,0.00025,5]
[374105890,1753207856441,-11781.00000615,0.00025,30]
[374105891,1753207856451,-44222.64663876,0.00025,30]
[374105892,1753207856460,-157.68,0.00025,14]
[374105893,1753207856470,-151.0,0.00025,7]
[374105894,1753207856479,-151.0,0.00025,7]
[374105895,1753207856489,-192.856538,0.00025,7]
[374105896,1753207856498,-151.0,0.00025,7]
[374105897,1753207856510,-151.0,0.00025,7]
[374105898,1753207856519,-155.366239,0.00025,7]
[374105899,1753207856529,-151.0,0.00025,7]
[374105900,1753207856538,-151.0,0.00025,7]
[374105901,1753207856547,-151.0,0.00025,7]
[374105902,1753207856557,-1044.239207,0.00025,7]
[374105903,1753207856566,-1044.239207,0.00025,7]
[374105904,1753207856575,-151.0,0.00025,7]
[374105905,1753207856585,-362.986687,0.00025,7]
[374105906,1753207856594,-362.986687,0.00025,7]
[374105907,1753207856603,-251.40456,0.00025,7]
[374105908,1753207856612,-151.0,0.00025,7]
[374105909,1753207856621,-151.0,0.00025,7]
[374105910,1753207856630,-1000.0,0.00025,5]
[374105911,1753207856640,-227.965116,0.00025,7]
[374105912,1753207856649,-151.0,0.00025,7]
[374105913,1753207856786,-383.746029,0.00025,7]
[374105914,1753207856831,-383.746029,0.00025,7]
[374105915,1753207856843,-151.0,0.00025,7]
[374105916,1753207856853,-151.0,0.00025,7]
[374105917,1753207856862,-151.0,0.00025,7]
[374105918,1753207856871,-151.0,0.00025,7]
[374105919,1753207856882,-526.07605158,0.00025,10]
[374105920,1753207856891,-526.07605158,0.00025,30]
[374105921,1753207856900,-151.0,0.00025,7]
[374105922,1753207856910,-151.0,0.00025,7]
[374105923,1753207856919,-174.890221,0.00025,7]
[374105924,1753207856928,-160.0,0.00025,10]
[374105925,1753207856938,-355.8389126,0.00025003,2]
[374105926,1753207856947,-4625.51782499,0.00025006,2]
[374105927,1753207856957,-1580.83867384,0.00025006,2]
[374105928,1753207856966,-2200.0,0.00025023,2]
[374105929,1753207856976,-2236.35669161,0.00025072,12]
[374105930,1753207856985,-151.0,0.00025082,7]
[374105931,1753207856996,-151.0,0.00025082,7]
[374105932,1753207857007,-151.0,0.00025082,7]
[374105933,1753207857017,-151.0,0.00025082,7]
[374105934,1753207857026,-151.0,0.00025082,7]
[374105935,1753207857035,-151.0,0.00025082,7]
[374105936,1753207857045,-225.03,0.00025082,7]
[374105937,1753207857054,-238.179817,0.00025082,7]
[374105938,1753207857064,-151.0,0.00025084,7]
[374105939,1753207857073,-150.793548,0.00025094,3]
[374105940,1753207857082,-178.204927,0.00025096,2]
[374105941,1753207857091,-2000.0,0.000251,2]
[374105942,1753207857101,-2000.0,0.000251,2]
[374105943,1753207857111,-151.0,0.00025102,7]
[374105944,1753207857120,-383.746029,0.00025102,7]
[374105945,1753207857130,-383.746029,0.00025102,7]
[374105946,1753207857140,-5244.48846078,0.00025103,3]
[374105947,1753207857150,-151.847431,0.00025103,7]
[374105948,1753207857160,-151.0,0.00025103,7]
[374105949,1753207857169,-151.0,0.00025103,7]
[374105950,1753207857180,-232.841339,0.00025103,7]
[374105951,1753207857190,-151.0,0.00025103,7]
[374105952,1753207857200,-151.0,0.00025103,7]
[374105953,1753207857211,-151.0,0.00025103,7]
[374105954,1753207857222,-151.0,0.00025103,7]
[374105955,1753207857233,-151.0,0.00025103,7]
[374105956,1753207857244,-151.0,0.00025103,7]
[374105957,1753207857254,-165.219473,0.00025103,7]
[374105958,1753207857273,-383.746029,0.00025103,7]
[374105959,1753207857285,-383.746029,0.00025103,7]
[374105960,1753207857295,-383.746029,0.00025103,7]
[374105961,1753207857305,-383.746029,0.00025103,7]
[374105962,1753207857315,-383.746029,0.00025103,7]
[374105963,1753207857324,-383.746029,0.00025103,7]
[374105964,1753207857334,-383.746029,0.00025103,7]
[374105965,1753207857344,-383.746029,0.00025103,7]
[374105966,1753207857354,-383.746029,0.00025103,7]
[374105967,1753207857364,-383.746028,0.00025103,7]
[374105968,1753207857374,-151.0,0.00025103,7]
[374105969,1753207857383,-151.0,0.00025103,7]
[374105970,1753207857393,-151.0,0.00025103,7]
[374105971,1753207857403,-151.0,0.00025106,7]
[374105972,1753207857412,-223.940845,0.00025106,7]
[374105973,1753207857422,-151.0,0.00025106,7]
[374105974,1753207857432,-151.0,0.00025106,7]
[374105975,1753207857441,-151.0,0.00025106,7]
[374105976,1753207857450,-151.0,0.00025106,7]
[374105977,1753207857460,-151.0,0.00025106,7]
[374105978,1753207857469,-151.0,0.00025106,7]
[374105979,1753207857479,-151.0,0.00025106,7]
[374105980,1753207857488,-151.0,0.00025106,7]
[374105981,1753207857497,-151.0,0.00025106,7]
[374105982,1753207857510,-151.0,0.00025106,7]
[374105983,1753207857519,-197.776218,0.00025106,7]
[374105984,1753207857529,-164.21927,0.00025106,7]
[374105985,1753207857539,-151.0,0.00025106,7]
[374105986,1753207857548,-151.0,0.00025106,7]
[374105987,1753207857557,-151.0,0.00025106,7]
[374105988,1753207857566,-151.0,0.00025106,7]
[374105989,1753207857575,-151.0,0.00025106,7]
[374105990,1753207857584,-151.0,0.00025106,7]
[374105991,1753207857594,-1806843.08071156,0.00025115,20]
[374105992,1753207857643,-8590.68931691,0.00025115,20]
[374105993,1753207857655,-817.1934508,0.00025115,20]
[374105994,1753207919769,503.005799,0.00013699,2]
[374105996,1753207938068,201.27716736,0.0001673,2]
[374105997,1753207938091,20000.0,0.0001673,2]
[374105998,1753207938114,20000.0,0.0001673,2]
[374105999,1753207938138,9482.66461252,0.0001673,2]
[374106000,1753208320510,10517.33538748,0.00016688,2]
[374106001,1753208320532,14382.66461252,0.00016688,2]
[374106002,1753208335380,-200.0,0.000255,120]
[374106003,1753208335417,-200.0,0.00026,120]
[374106004,1753208385006,-237345.26174433,0.00025093,32]
[374106005,1753208385032,-2124.38144169,0.00025093,30]
[374106006,1753208385056,-15000.03560961,0.00025093,30]
[374106007,1753208385081,-1493.57880313,0.00025093,30]
[374106008,1753208385105,-1186.46682736,0.00025093,30]
[374106009,1753208385129,-1048.89641053,0.00025093,30]
[374106010,1753208385153,-244.63486599,0.00025093,30]
[374106011,1753208385177,-628.53712876,0.00025093,30]
[374106012,1753208385201,-1843.55164366,0.00025093,30]
[374106013,1753208385226,-2265.28621885,0.00025093,30]
[374106014,1753208385250,-1510.29662881,0.00025093,30]
[374106015,1753208385274,-2270.0,0.00025093,30]
[374106016,1753208385298,-1505832.77980066,0.00025093,50]
[374106017,1753208385322,-2000.0,0.00025093,30]
[374106018,1753208385346,-2000.0,0.00025093,30]
[374106019,1753208385370,-1016.699999,0.00025093,30]
[374106020,1753208385393,-799.1395155,0.00025093,120]
[374106021,1753208385420,-1339.24358748,0.00025093,120]
[374106022,1753208385447,-19390.0,0.00025093,30]
[374106023,1753208385471,-4197.9416113,0.00025093,120]
[374106024,1753208385498,-403.33229422,0.00025093,120]
[374106025,1753208385521,-1069.50654355,0.00025093,120]
[374106026,1753208385543,-5041.31279575,0.00025093,30]
[374106027,1753208385567,-731.0,0.00025093,50]
[374106028,1753208385590,-1234.0,0.00025093,120]
[374106029,1753208385613,-300.0,0.00025093,30]
[374106030,1753208385637,-14055.26201377,0.00025093,60]
[374106031,1753208385786,-2065.31320215,0.00025093,120]
[374106032,1753208385811,-2000.0,0.00025093,30]
[374106033,1753208385836,-966.899999,0.00025093,30]
[374106034,1753208402244,-526.07605158,0.000251,30]
[374106035,1753208402277,-150.793548,0.00025321,30]
[374106036,1753208402304,-5000.0,0.0002549,30]
[374106037,1753208402335,-152.8,0.000256,31]
[374106038,1753208402363,-152.8,0.000256,31]
[374106039,1753208402389,-152.8,0.000256,31]
[374106040,1753208402417,-152.8,0.000256,31]
[374106041,1753208402446,-152.8,0.000256,31]
[374106042,1753208402474,-152.8,0.000256,31]
[374106043,1753208402516,-152.8,0.000256,31]
[374106044,1753208402555,-152.8,0.000256,31]
[374106045,1753208402587,-152.8,0.000256,31]
[374106046,1753208402620,-152.8,0.000256,31]
[374106047,1753208402654,-152.8,0.000256,31]
[374106048,1753208402686,-152.8,0.000256,31]
[374106049,1753208402723,-152.8,0.000256,31]
[374106050,1753208402756,-152.8,0.000256,31]
[374106051,1753208402796,-152.8,0.000256,31]
[374106052,1753208402830,-152.8,0.000256,31]
[374106053,1753208402861,-152.8,0.000256,31]
[374106054,1753208402890,-152.8,0.000256,31]
[374106055,1753208402921,-152.8,0.000256,31]
[374106056,1753208402956,-152.8,0.000256,31]
[374106057,1753208402988,-152.8,0.000256,31]
[374106058,1753208403022,-152.8,0.000256,31]
[374106059,1753208403062,-152.8,0.000259,31]
[374106060,1753208403095,-152.8,0.000259,31]
[374106061,1753208403132,-152.8,0.000259,31]
[374106062,1753208403171,-152.8,0.000259,31]
[374106063,1753208403210,-152.8,0.000259,31]
[374106064,1753208403247,-152.8,0.000259,31]